[Event "Titled Tuesday Blitz October 11 Late 2022"]
[White "Reprintsev, Alexander"]
[Black "Garmash, Aliona"]
[WhiteFideId "14100541"]
[BlackFideId "34127620"]
[WhiteElo "2230"]
[BlackElo "1980"]
[Result "0-1"]
[Round "10"]
[TimeControl "180+1"]
[Date "2022.10.12"]
[WhiteClock "0:00:01"]
[BlackClock "0:00:06"]

1. e4 {[%clk 0:02:55]}  g6 {[%clk 0:02:59]} 2. d4 {[%clk 0:02:54]}  Bg7 {[%clk 0:03:00]} 3. Nc3 {[%clk 0:02:53]}  d6 {[%clk 0:03:00]} 4. h4 {[%clk 0:02:53]}  h5 {[%clk 0:02:58]} 5. Nf3 {[%clk 0:02:51]}  c6 {[%clk 0:02:48]} 6. Ng5 {[%clk 0:02:50]}  b5 {[%clk 0:02:46]} 7. Be3 {[%clk 0:02:46]}  Nf6 {[%clk 0:02:44]} 8. Qd2 {[%clk 0:02:44]}  O-O {[%clk 0:02:38]} 9. f3 {[%clk 0:02:44]}  Nbd7 {[%clk 0:02:31]} 10. a4 {[%clk 0:02:41]}  b4 {[%clk 0:02:29]} 11. Ne2 {[%clk 0:02:40]}  c5 {[%clk 0:02:28]} 12. dxc5 {[%clk 0:02:31]}  dxc5 {[%clk 0:02:27]} 13. O-O-O {[%clk 0:02:28]}  Qa5 {[%clk 0:02:21]} 14. b3 {[%clk 0:02:25]}  c4 {[%clk 0:02:20]} 15. Nd4 {[%clk 0:01:55]}  cxb3 {[%clk 0:02:18]} 16. cxb3 {[%clk 0:01:55]}  Bb7 {[%clk 0:02:12]} 17. Nb5 {[%clk 0:01:49]}  Rac8+ {[%clk 0:01:59]} 18. Kb1 {[%clk 0:01:49]}  Nc5 {[%clk 0:01:57]} 19. Bxc5 {[%clk 0:01:45]}  Rxc5 {[%clk 0:01:56]} 20. Bc4 {[%clk 0:01:42]}  Rxc4 {[%clk 0:01:47]} 21. bxc4 {[%clk 0:01:41]}  a6 {[%clk 0:01:34]} 22. Nd4 {[%clk 0:01:32]}  Nd7 {[%clk 0:01:27]} 23. Nb3 {[%clk 0:01:29]}  Qxa4 {[%clk 0:01:26]} 24. Qa2 {[%clk 0:01:28]}  Qc6 {[%clk 0:01:21]} 25. Na5 {[%clk 0:01:27]}  Qc7 {[%clk 0:01:18]} 26. g4 {[%clk 0:00:59]}  hxg4 {[%clk 0:01:13]} 27. h5 {[%clk 0:00:59]}  Nc5 {[%clk 0:00:57]} 28. hxg6 {[%clk 0:00:57]}  fxg6 {[%clk 0:00:55]} 29. Nxb7 {[%clk 0:00:51]}  Qxb7 {[%clk 0:00:54]} 30. Rd5 {[%clk 0:00:51]}  b3 {[%clk 0:00:46]} 31. Qa3 {[%clk 0:00:49]}  gxf3 {[%clk 0:00:23]} 32. Qxc5 {[%clk 0:00:46]}  Qb8 {[%clk 0:00:20]} 33. Ne6 {[%clk 0:00:40]}  Qg3 {[%clk 0:00:17]} 34. Nxg7 {[%clk 0:00:29]}  Qg2 {[%clk 0:00:17]} 35. Qa3 {[%clk 0:00:09]}  Qxh1+ {[%clk 0:00:16]} 36. Kb2 {[%clk 0:00:10]}  Kxg7 {[%clk 0:00:14]} 37. Qxb3 {[%clk 0:00:09]}  Qg2+ {[%clk 0:00:13]} 38. Ka3 {[%clk 0:00:09]}  f2 {[%clk 0:00:12]} 39. Qc3+ {[%clk 0:00:09]}  Kg8 {[%clk 0:00:12]} 40. Rd1 {[%clk 0:00:06]}  f1=Q {[%clk 0:00:11]} 41. Rxf1 {[%clk 0:00:07]}  Qxf1 {[%clk 0:00:11]} 42. Qe5 {[%clk 0:00:07]}  Qf3+ {[%clk 0:00:11]} 43. Ka4 {[%clk 0:00:07]}  Qf6 {[%clk 0:00:10]} 44. Qg3 {[%clk 0:00:06]}  Qc6+ {[%clk 0:00:10]} 45. Kb3 {[%clk 0:00:05]}  Rc8 {[%clk 0:00:09]} 46. c5 {[%clk 0:00:02]}  Qb5+ {[%clk 0:00:07]} 47. Ka2 {[%clk 0:00:02]}  Qc4+ {[%clk 0:00:07]} 48. Ka1 {[%clk 0:00:01]}  Qe6 {[%clk 0:00:06]} 0-1


[Site "https://www.chess.com"]

[Event "Titled Tuesday Blitz October 11 Late 2022"]
[White "Rodriguez Santiago, Jaime"]
[Black "Tarnowska, Aleksandra"]
[WhiteFideId "3100898"]
[BlackFideId "1180967"]
[WhiteElo "2025"]
[BlackElo "1776"]
[Result "0-1"]
[Round "10"]
[TimeControl "180+1"]
[Date "2022.10.12"]
[WhiteClock "0:00:41"]
[BlackClock "0:00:08"]

1. Nf3 {[%clk 0:03:00]}  d5 {[%clk 0:02:58]} 2. c4 {[%clk 0:03:00]}  e6 {[%clk 0:02:57]} 3. g3 {[%clk 0:03:00]}  Nf6 {[%clk 0:02:58]} 4. Bg2 {[%clk 0:03:00]}  Nbd7 {[%clk 0:02:56]} 5. O-O {[%clk 0:03:00]}  c5 {[%clk 0:02:40]} 6. b3 {[%clk 0:03:00]}  Be7 {[%clk 0:02:36]} 7. Bb2 {[%clk 0:03:00]}  O-O {[%clk 0:02:35]} 8. e3 {[%clk 0:03:00]}  Rb8 {[%clk 0:02:11]} 9. Qe2 {[%clk 0:02:58]}  b6 {[%clk 0:02:05]} 10. d3 {[%clk 0:02:58]}  Ba6 {[%clk 0:02:04]} 11. Nc3 {[%clk 0:02:57]}  Re8 {[%clk 0:01:55]} 12. Rad1 {[%clk 0:02:57]}  b5 {[%clk 0:01:33]} 13. Ne1 {[%clk 0:02:52]}  bxc4 {[%clk 0:01:20]} 14. bxc4 {[%clk 0:02:49]}  Qb6 {[%clk 0:01:11]} 15. Ba1 {[%clk 0:02:48]}  dxc4 {[%clk 0:01:09]} 16. dxc4 {[%clk 0:02:47]}  Ne5 {[%clk 0:01:07]} 17. Nb5 {[%clk 0:02:31]}  Nxc4 {[%clk 0:00:59]} 18. Qxc4 {[%clk 0:02:25]}  Bxb5 {[%clk 0:00:59]} 19. Qc3 {[%clk 0:02:23]}  Bxf1 {[%clk 0:00:59]} 20. Bxf1 {[%clk 0:02:23]}  Qb4 {[%clk 0:00:51]} 21. Qc2 {[%clk 0:02:18]}  Red8 {[%clk 0:00:44]} 22. Rc1 {[%clk 0:02:18]}  Rd2 {[%clk 0:00:39]} 23. Qc3 {[%clk 0:02:06]}  Qxc3 {[%clk 0:00:36]} 24. Bxc3 {[%clk 0:02:07]}  Rxa2 {[%clk 0:00:35]} 25. Bc4 {[%clk 0:02:08]}  Ra4 {[%clk 0:00:32]} 26. Be5 {[%clk 0:02:06]}  Rb7 {[%clk 0:00:26]} 27. Nd3 {[%clk 0:02:04]}  Nd5 {[%clk 0:00:23]} 28. e4 {[%clk 0:01:56]}  Nb6 {[%clk 0:00:21]} 29. Bb5 {[%clk 0:01:52]}  Ra5 {[%clk 0:00:18]} 30. Bc6 {[%clk 0:01:52]}  c4 {[%clk 0:00:10]} 31. Nf4 {[%clk 0:01:42]}  Rxe5 {[%clk 0:00:09]} 32. Bxb7 {[%clk 0:01:42]}  h6 {[%clk 0:00:07]} 33. h4 {[%clk 0:01:40]}  g5 {[%clk 0:00:07]} 34. hxg5 {[%clk 0:01:39]}  Bxg5 {[%clk 0:00:07]} 35. Rc3 {[%clk 0:01:36]}  Bxf4 {[%clk 0:00:06]} 36. gxf4 {[%clk 0:01:36]}  Rc5 {[%clk 0:00:07]} 37. Kf1 {[%clk 0:01:33]}  Na4 {[%clk 0:00:07]} 38. Rc2 {[%clk 0:01:33]}  c3 {[%clk 0:00:07]} 39. e5 {[%clk 0:01:33]}  Nb2 {[%clk 0:00:06]} 40. Be4 {[%clk 0:01:33]}  Rc4 {[%clk 0:00:06]} 41. f3 {[%clk 0:01:32]}  Na4 {[%clk 0:00:05]} 42. Ke2 {[%clk 0:01:32]}  Kf8 {[%clk 0:00:05]} 43. Kd3 {[%clk 0:01:32]}  Rc5 {[%clk 0:00:05]} 44. Ra2 {[%clk 0:01:31]}  Nb2+ {[%clk 0:00:05]} 45. Kc2 {[%clk 0:01:31]}  a5 {[%clk 0:00:04]} 46. Ra3 {[%clk 0:01:31]}  Ke7 {[%clk 0:00:04]} 47. Rxc3 {[%clk 0:01:31]}  Rxc3+ {[%clk 0:00:05]} 48. Kxc3 {[%clk 0:01:31]}  Nd1+ {[%clk 0:00:06]} 49. Kb3 {[%clk 0:01:26]}  Nf2 {[%clk 0:00:06]} 50. Bb7 {[%clk 0:01:24]}  Nh3 {[%clk 0:00:05]} 51. Ka4 {[%clk 0:01:22]}  Nxf4 {[%clk 0:00:05]} 52. Kxa5 {[%clk 0:01:19]}  Nd3 {[%clk 0:00:06]} 53. Kb5 {[%clk 0:01:15]}  Nxe5 {[%clk 0:00:06]} 54. Kc5 {[%clk 0:01:13]}  f5 {[%clk 0:00:05]} 55. Kd4 {[%clk 0:01:12]}  Kf6 {[%clk 0:00:06]} 56. Ke3 {[%clk 0:01:11]}  h5 {[%clk 0:00:06]} 57. Kf2 {[%clk 0:01:11]}  h4 {[%clk 0:00:07]} 58. Kg2 {[%clk 0:01:10]}  Ng6 {[%clk 0:00:07]} 59. Kh3 {[%clk 0:01:10]}  Kg5 {[%clk 0:00:07]} 60. Bc8 {[%clk 0:01:09]}  e5 {[%clk 0:00:08]} 61. Bb7 {[%clk 0:01:09]}  Nf4+ {[%clk 0:00:08]} 62. Kh2 {[%clk 0:01:08]}  Nd3 {[%clk 0:00:09]} 63. Kg2 {[%clk 0:01:07]}  Nc5 {[%clk 0:00:09]} 64. Bc6 {[%clk 0:01:06]}  e4 {[%clk 0:00:09]} 65. fxe4 {[%clk 0:01:06]}  fxe4 {[%clk 0:00:10]} 66. Bb5 {[%clk 0:01:03]}  Kg4 {[%clk 0:00:10]} 67. Be2+ {[%clk 0:01:02]}  Kf4 {[%clk 0:00:10]} 68. Kh3 {[%clk 0:01:03]}  Ke3 {[%clk 0:00:10]} 69. Bh5 {[%clk 0:01:02]}  Ne6 {[%clk 0:00:09]} 70. Kxh4 {[%clk 0:01:02]}  Nf4 {[%clk 0:00:08]} 71. Bd1 {[%clk 0:01:01]}  Kd2 {[%clk 0:00:08]} 72. Bg4 {[%clk 0:01:00]}  e3 {[%clk 0:00:07]} 73. Kg3 {[%clk 0:01:00]}  Nd3 {[%clk 0:00:07]} 74. Bh5 {[%clk 0:00:57]}  Ne5 {[%clk 0:00:07]} 75. Kg2 {[%clk 0:00:55]}  Nd7 {[%clk 0:00:06]} 76. Kf1 {[%clk 0:00:55]}  Nf6 {[%clk 0:00:06]} 77. Bf3 {[%clk 0:00:51]}  Ne8 {[%clk 0:00:06]} 78. Be2 {[%clk 0:00:50]}  Nd6 {[%clk 0:00:06]} 79. Bf3 {[%clk 0:00:50]}  Nc4 {[%clk 0:00:06]} 80. Be2 {[%clk 0:00:49]}  Ne5 {[%clk 0:00:06]} 81. Bh5 {[%clk 0:00:47]}  Nd3 {[%clk 0:00:07]} 82. Be2 {[%clk 0:00:46]}  Nf4 {[%clk 0:00:07]} 83. Bf3 {[%clk 0:00:47]}  Kd3 {[%clk 0:00:06]} 84. Bg4 {[%clk 0:00:46]}  Kd2 {[%clk 0:00:06]} 85. Bf3 {[%clk 0:00:46]}  Nd3 {[%clk 0:00:07]} 86. Be2 {[%clk 0:00:45]}  Nc1 {[%clk 0:00:06]} 87. Bh5 {[%clk 0:00:44]}  Nb3 {[%clk 0:00:06]} 88. Bg4 {[%clk 0:00:44]}  Nd4 {[%clk 0:00:07]} 89. Bh5 {[%clk 0:00:45]}  Nf5 {[%clk 0:00:07]} 90. Bf3 {[%clk 0:00:42]}  Ng3+ {[%clk 0:00:08]} 91. Kg2 {[%clk 0:00:43]}  Ne4 {[%clk 0:00:07]} 92. Kf1 {[%clk 0:00:43]}  Ng5 {[%clk 0:00:07]} 93. Bg4 {[%clk 0:00:42]}  Ne6 {[%clk 0:00:06]} 94. Be2 {[%clk 0:00:42]}  Nd4 {[%clk 0:00:05]} 95. Bh5 {[%clk 0:00:41]}  Nf5 {[%clk 0:00:05]} 96. Be2 {[%clk 0:00:41]}  Ng3+ {[%clk 0:00:05]} 97. Kg2 {[%clk 0:00:40]}  Nxe2 {[%clk 0:00:06]} 98. Kf3 {[%clk 0:00:41]}  Nd4+ {[%clk 0:00:06]} 99. Ke4 {[%clk 0:00:41]}  e2 {[%clk 0:00:07]} 100. Kxd4 {[%clk 0:00:41]}  e1=Q {[%clk 0:00:08]} 0-1


[Site "https://www.chess.com"]

[Event "Titled Tuesday Blitz October 11 Late 2022"]
[White "Rubio Tent, Francisco"]
[Black "Borawski, Jakub"]
[WhiteFideId "2238233"]
[BlackFideId "1143000"]
[WhiteElo "2211"]
[BlackElo "2122"]
[Result "1-0"]
[Round "10"]
[TimeControl "180+1"]
[Date "2022.10.12"]
[WhiteClock "0:00:42"]
[BlackClock "0:00:02"]

1. e4 {[%clk 0:03:00]}  e6 {[%clk 0:02:59]} 2. d4 {[%clk 0:03:00]}  d5 {[%clk 0:03:00]} 3. exd5 {[%clk 0:03:01]}  exd5 {[%clk 0:03:00]} 4. Nf3 {[%clk 0:03:02]}  Nc6 {[%clk 0:03:00]} 5. c4 {[%clk 0:03:03]}  Bb4+ {[%clk 0:02:57]} 6. Nc3 {[%clk 0:03:03]}  Nf6 {[%clk 0:02:57]} 7. Bd3 {[%clk 0:03:02]}  dxc4 {[%clk 0:02:55]} 8. Bxc4 {[%clk 0:03:03]}  O-O {[%clk 0:02:55]} 9. O-O {[%clk 0:03:02]}  Bg4 {[%clk 0:02:55]} 10. Be3 {[%clk 0:03:02]}  Re8 {[%clk 0:02:53]} 11. a3 {[%clk 0:03:02]}  Bd6 {[%clk 0:02:52]} 12. h3 {[%clk 0:03:02]}  Bh5 {[%clk 0:02:50]} 13. Re1 {[%clk 0:02:59]}  Qd7 {[%clk 0:02:30]} 14. Rc1 {[%clk 0:02:48]}  Rad8 {[%clk 0:02:22]} 15. Be2 {[%clk 0:02:42]}  Bg6 {[%clk 0:02:20]} 16. b4 {[%clk 0:02:35]}  Ne7 {[%clk 0:02:14]} 17. Qb3 {[%clk 0:02:31]}  c6 {[%clk 0:02:13]} 18. Bc4 {[%clk 0:02:28]}  Ned5 {[%clk 0:02:02]} 19. Bg5 {[%clk 0:02:11]}  Be7 {[%clk 0:01:19]} 20. Ne5 {[%clk 0:02:09]}  Qf5 {[%clk 0:01:16]} 21. Bh4 {[%clk 0:01:49]}  Qh5 {[%clk 0:01:10]} 22. Bg3 {[%clk 0:01:43]}  Nxc3 {[%clk 0:01:03]} 23. Qxc3 {[%clk 0:01:40]}  Nd5 {[%clk 0:00:59]} 24. Qb3 {[%clk 0:01:36]}  Qf5 {[%clk 0:00:52]} 25. Rcd1 {[%clk 0:01:29]}  Qc8 {[%clk 0:00:47]} 26. b5 {[%clk 0:01:28]}  Bf6 {[%clk 0:00:37]} 27. Rc1 {[%clk 0:01:22]}  Bg5 {[%clk 0:00:28]} 28. Rcd1 {[%clk 0:01:18]}  h5 {[%clk 0:00:17]} 29. Nxg6 {[%clk 0:01:15]}  fxg6 {[%clk 0:00:17]} 30. Be5 {[%clk 0:01:12]}  Kh7 {[%clk 0:00:16]} 31. bxc6 {[%clk 0:01:10]}  bxc6 {[%clk 0:00:15]} 32. Qg3 {[%clk 0:01:02]}  Bf6 {[%clk 0:00:13]} 33. Bd3 {[%clk 0:01:00]}  Ne7 {[%clk 0:00:11]} 34. Bxf6 {[%clk 0:00:55]}  gxf6 {[%clk 0:00:12]} 35. Rxe7+ {[%clk 0:00:48]}  Rxe7 {[%clk 0:00:12]} 36. Qxg6+ {[%clk 0:00:48]}  Kh8 {[%clk 0:00:12]} 37. Qxf6+ {[%clk 0:00:46]}  Rg7 {[%clk 0:00:09]} 38. Qh6+ {[%clk 0:00:44]}  Kg8 {[%clk 0:00:09]} 39. Bc4+ {[%clk 0:00:45]}  Kf8 {[%clk 0:00:09]} 40. Qf6+ {[%clk 0:00:43]}  Ke8 {[%clk 0:00:03]} 41. Re1+ {[%clk 0:00:43]}  Kd7 {[%clk 0:00:03]} 42. Qxg7+ {[%clk 0:00:41]}  Kd6 {[%clk 0:00:03]} 43. Qe5+ {[%clk 0:00:41]}  Kd7 {[%clk 0:00:02]} 44. Qe7# {[%clk 0:00:42]} 1-0


[Site "https://www.chess.com"]

[Event "Titled Tuesday Blitz October 11 Late 2022"]
[White "Sarana, Alexey"]
[Black "Maksimovic, Bojan"]
[WhiteFideId "24133795"]
[BlackFideId "14408120"]
[WhiteElo "2689"]
[BlackElo "2447"]
[Result "1-0"]
[Round "10"]
[TimeControl "180+1"]
[Date "2022.10.11"]
[WhiteClock "0:00:04"]
[BlackClock "0:00:02"]

1. c4 {[%clk 0:03:00]}  Nf6 {[%clk 0:03:00]} 2. Nc3 {[%clk 0:03:01]}  g6 {[%clk 0:03:00]} 3. g3 {[%clk 0:02:58]}  Bg7 {[%clk 0:03:00]} 4. Bg2 {[%clk 0:02:59]}  O-O {[%clk 0:03:01]} 5. d4 {[%clk 0:02:58]}  d6 {[%clk 0:03:01]} 6. Nf3 {[%clk 0:02:58]}  Nc6 {[%clk 0:03:02]} 7. O-O {[%clk 0:02:57]}  a6 {[%clk 0:03:02]} 8. Qc2 {[%clk 0:02:52]}  Bf5 {[%clk 0:02:57]} 9. e4 {[%clk 0:02:50]}  Bg4 {[%clk 0:02:57]} 10. Be3 {[%clk 0:02:35]}  Bxf3 {[%clk 0:02:51]} 11. Bxf3 {[%clk 0:02:35]}  e5 {[%clk 0:02:51]} 12. d5 {[%clk 0:02:33]}  Nd4 {[%clk 0:02:50]} 13. Qd1 {[%clk 0:02:34]}  c5 {[%clk 0:02:47]} 14. dxc6 {[%clk 0:02:33]}  bxc6 {[%clk 0:02:46]} 15. Bxd4 {[%clk 0:02:32]}  exd4 {[%clk 0:02:46]} 16. Qxd4 {[%clk 0:02:33]}  Nd5 {[%clk 0:02:42]} 17. Qd3 {[%clk 0:02:26]}  Nxc3 {[%clk 0:02:40]} 18. bxc3 {[%clk 0:02:27]}  Be5 {[%clk 0:02:05]} 19. Be2 {[%clk 0:02:18]}  Qb6 {[%clk 0:02:03]} 20. Rfb1 {[%clk 0:02:13]}  Qc5 {[%clk 0:01:55]} 21. Kg2 {[%clk 0:02:11]}  Rab8 {[%clk 0:01:51]} 22. Rb3 {[%clk 0:02:11]}  Qa5 {[%clk 0:01:27]} 23. Qb1 {[%clk 0:02:09]}  Rxb3 {[%clk 0:01:07]} 24. axb3 {[%clk 0:02:10]}  Qxc3 {[%clk 0:01:07]} 25. Rxa6 {[%clk 0:02:10]}  Rb8 {[%clk 0:01:07]} 26. Ra3 {[%clk 0:01:30]}  c5 {[%clk 0:01:00]} 27. Qa2 {[%clk 0:01:08]}  Qe1 {[%clk 0:00:51]} 28. Qc2 {[%clk 0:01:02]}  Qb4 {[%clk 0:00:47]} 29. Qc1 {[%clk 0:00:53]}  Bd4 {[%clk 0:00:38]} 30. h4 {[%clk 0:00:52]}  h5 {[%clk 0:00:37]} 31. Kf1 {[%clk 0:00:28]}  Kg7 {[%clk 0:00:37]} 32. Bd1 {[%clk 0:00:27]}  Re8 {[%clk 0:00:31]} 33. Ra4 {[%clk 0:00:20]}  Qb7 {[%clk 0:00:28]} 34. Bc2 {[%clk 0:00:20]}  Re6 {[%clk 0:00:28]} 35. Qd2 {[%clk 0:00:14]}  Rf6 {[%clk 0:00:25]} 36. f4 {[%clk 0:00:14]}  Qd7 {[%clk 0:00:21]} 37. Kg2 {[%clk 0:00:10]}  Re6 {[%clk 0:00:03]} 38. Qd3 {[%clk 0:00:07]}  f5 {[%clk 0:00:02]} 39. exf5 {[%clk 0:00:05]}  gxf5 {[%clk 0:00:03]} 40. Qxf5 {[%clk 0:00:03]}  Re2+ {[%clk 0:00:03]} 41. Kf1 {[%clk 0:00:03]}  Rf2+ {[%clk 0:00:04]} 42. Ke1 {[%clk 0:00:04]}  Qe7+ {[%clk 0:00:04]} 43. Be4 {[%clk 0:00:04]}  Qf7 {[%clk 0:00:01]} 44. Qg5+ {[%clk 0:00:04]}  Kf8 {[%clk 0:00:01]} 45. Ra8+ {[%clk 0:00:04]}  Qe8 {[%clk 0:00:01]} 46. Rxe8+ {[%clk 0:00:05]}  Kxe8 {[%clk 0:00:02]} 47. Bc6+ {[%clk 0:00:04]} 1-0


[Site "https://www.chess.com"]

[Event "Titled Tuesday Blitz October 11 Late 2022"]
[White "Souleidis, Georgios"]
[Black "Krstic, Milos"]
[WhiteFideId "4206827"]
[BlackFideId "954888"]
[WhiteElo "2401"]
[BlackElo "2194"]
[Result "1-0"]
[Round "10"]
[TimeControl "180+1"]
[Date "2022.10.12"]
[WhiteClock "0:00:23"]
[BlackClock "0:00:22"]

1. e4 {[%clk 0:03:00]}  d5 {[%clk 0:02:58]} 2. exd5 {[%clk 0:03:00]}  Qxd5 {[%clk 0:02:59]} 3. Nc3 {[%clk 0:03:00]}  Qd6 {[%clk 0:03:00]} 4. d4 {[%clk 0:03:00]}  c6 {[%clk 0:03:00]} 5. Nf3 {[%clk 0:03:01]}  Nf6 {[%clk 0:03:01]} 6. Ne5 {[%clk 0:03:01]}  Nbd7 {[%clk 0:03:01]} 7. Nc4 {[%clk 0:03:01]}  Qc7 {[%clk 0:03:01]} 8. a4 {[%clk 0:03:02]}  Nb6 {[%clk 0:02:59]} 9. Ne5 {[%clk 0:03:02]}  g6 {[%clk 0:02:55]} 10. a5 {[%clk 0:02:55]}  Nbd5 {[%clk 0:02:55]} 11. Nxd5 {[%clk 0:02:53]}  cxd5 {[%clk 0:02:50]} 12. Bb5+ {[%clk 0:02:50]}  Bd7 {[%clk 0:02:50]} 13. Nxd7 {[%clk 0:02:46]}  Nxd7 {[%clk 0:02:49]} 14. O-O {[%clk 0:02:45]}  Bg7 {[%clk 0:02:49]} 15. a6 {[%clk 0:02:44]}  b6 {[%clk 0:02:47]} 16. c3 {[%clk 0:02:42]}  O-O {[%clk 0:02:46]} 17. Re1 {[%clk 0:02:42]}  Nf6 {[%clk 0:02:46]} 18. Bd3 {[%clk 0:02:36]}  e6 {[%clk 0:02:45]} 19. Qf3 {[%clk 0:02:36]}  Rac8 {[%clk 0:02:24]} 20. h4 {[%clk 0:02:25]}  h5 {[%clk 0:02:21]} 21. Bg5 {[%clk 0:02:14]}  Ng4 {[%clk 0:02:17]} 22. Bf4 {[%clk 0:02:12]}  Qd7 {[%clk 0:02:09]} 23. Qg3 {[%clk 0:02:05]}  Rfd8 {[%clk 0:01:58]} 24. f3 {[%clk 0:01:57]}  Nf6 {[%clk 0:01:59]} 25. Bg5 {[%clk 0:01:49]}  Rf8 {[%clk 0:01:54]} 26. Re2 {[%clk 0:01:47]}  Ne8 {[%clk 0:01:53]} 27. Rae1 {[%clk 0:01:43]}  Nd6 {[%clk 0:01:53]} 28. Bf4 {[%clk 0:01:38]}  Nf5 {[%clk 0:01:46]} 29. Bxf5 {[%clk 0:01:31]}  exf5 {[%clk 0:01:46]} 30. Bd6 {[%clk 0:00:48]}  Rfd8 {[%clk 0:01:42]} 31. Bb4 {[%clk 0:00:48]}  Qb5 {[%clk 0:01:37]} 32. Re7 {[%clk 0:00:41]}  Qxa6 {[%clk 0:01:29]} 33. Qg5 {[%clk 0:00:41]}  Bf8 {[%clk 0:01:23]} 34. Rxf7 {[%clk 0:00:24]}  Kxf7 {[%clk 0:01:18]} 35. Bxf8 {[%clk 0:00:25]}  b5 {[%clk 0:00:22]} 36. Qe7+ {[%clk 0:00:23]} 1-0


[Site "https://www.chess.com"]

[Event "Titled Tuesday Blitz October 11 Late 2022"]
[White "Sztokbant, Bernardo Vainzoff"]
[Black "Baltaci, Ismail Tarik"]
[WhiteFideId "2115956"]
[BlackFideId "6365213"]
[WhiteElo "2171"]
[BlackElo "2366"]
[Result "1-0"]
[Round "10"]
[TimeControl "180+1"]
[Date "2022.10.12"]
[WhiteClock "0:00:53"]
[BlackClock "0:00:05"]

1. d4 {[%clk 0:03:00]}  d5 {[%clk 0:02:59]} 2. c4 {[%clk 0:02:59]}  e6 {[%clk 0:02:59]} 3. Nf3 {[%clk 0:02:59]}  c5 {[%clk 0:02:58]} 4. e3 {[%clk 0:02:56]}  Nf6 {[%clk 0:02:58]} 5. Nc3 {[%clk 0:02:57]}  Nc6 {[%clk 0:02:57]} 6. a3 {[%clk 0:02:57]}  cxd4 {[%clk 0:02:54]} 7. exd4 {[%clk 0:02:57]}  dxc4 {[%clk 0:02:54]} 8. Bxc4 {[%clk 0:02:57]}  Be7 {[%clk 0:02:55]} 9. O-O {[%clk 0:02:58]}  O-O {[%clk 0:02:55]} 10. Re1 {[%clk 0:02:57]}  b6 {[%clk 0:02:45]} 11. Qd3 {[%clk 0:02:49]}  Bb7 {[%clk 0:02:42]} 12. Ba2 {[%clk 0:02:48]}  Rc8 {[%clk 0:02:39]} 13. Bf4 {[%clk 0:02:43]}  Nd5 {[%clk 0:02:01]} 14. Nxd5 {[%clk 0:02:39]}  exd5 {[%clk 0:02:00]} 15. Rad1 {[%clk 0:02:37]}  Bf6 {[%clk 0:01:59]} 16. Bb1 {[%clk 0:02:36]}  g6 {[%clk 0:01:59]} 17. Ne5 {[%clk 0:02:25]}  Re8 {[%clk 0:01:56]} 18. Ba2 {[%clk 0:02:16]}  Bg5 {[%clk 0:01:29]} 19. Bxg5 {[%clk 0:01:56]}  Qxg5 {[%clk 0:01:26]} 20. Bxd5 {[%clk 0:01:52]}  Nxe5 {[%clk 0:01:22]} 21. dxe5 {[%clk 0:01:51]}  Rcd8 {[%clk 0:01:22]} 22. Qe4 {[%clk 0:01:35]}  Rxd5 {[%clk 0:00:45]} 23. Rxd5 {[%clk 0:01:36]}  Qe7 {[%clk 0:00:24]} 24. Qd4 {[%clk 0:01:31]}  Bxd5 {[%clk 0:00:23]} 25. Qxd5 {[%clk 0:01:32]}  Rd8 {[%clk 0:00:23]} 26. Qe4 {[%clk 0:01:31]}  Kg7 {[%clk 0:00:19]} 27. g3 {[%clk 0:01:31]}  Rc8 {[%clk 0:00:17]} 28. h4 {[%clk 0:01:31]}  Rc5 {[%clk 0:00:17]} 29. Qd4 {[%clk 0:01:29]}  Qe6 {[%clk 0:00:16]} 30. h5 {[%clk 0:01:22]}  Rd5 {[%clk 0:00:13]} 31. Qf4 {[%clk 0:01:02]}  h6 {[%clk 0:00:11]} 32. hxg6 {[%clk 0:01:02]}  fxg6 {[%clk 0:00:08]} 33. Qe4 {[%clk 0:00:56]}  g5 {[%clk 0:00:05]} 34. Qe3 {[%clk 0:00:53]} 1-0


[Site "https://www.chess.com"]

[Event "Titled Tuesday Blitz October 11 Late 2022"]
[White "Tarasova, Viktoriya"]
[Black "Kouskoutis, Georgios-Alexandros"]
[WhiteFideId "4175840"]
[BlackFideId "4234049"]
[WhiteElo "2182"]
[BlackElo "2187"]
[Result "0-1"]
[Round "10"]
[TimeControl "180+1"]
[Date "2022.10.12"]
[WhiteClock "0:00:07"]
[BlackClock "0:00:06"]

1. d4 {[%clk 0:03:00]}  Nf6 {[%clk 0:03:00]} 2. c4 {[%clk 0:03:00]}  e6 {[%clk 0:03:00]} 3. Nc3 {[%clk 0:03:00]}  Bb4 {[%clk 0:03:00]} 4. Nf3 {[%clk 0:03:01]}  O-O {[%clk 0:03:00]} 5. Bg5 {[%clk 0:03:01]}  h6 {[%clk 0:03:00]} 6. Bh4 {[%clk 0:03:00]}  g5 {[%clk 0:02:54]} 7. Bg3 {[%clk 0:02:59]}  Ne4 {[%clk 0:02:54]} 8. Qc2 {[%clk 0:02:59]}  f5 {[%clk 0:02:55]} 9. Nd2 {[%clk 0:02:44]}  Bxc3 {[%clk 0:02:51]} 10. bxc3 {[%clk 0:02:41]}  Nxd2 {[%clk 0:02:51]} 11. Kxd2 {[%clk 0:02:32]}  d6 {[%clk 0:02:35]} 12. h4 {[%clk 0:02:24]}  Qf6 {[%clk 0:02:09]} 13. hxg5 {[%clk 0:02:18]}  hxg5 {[%clk 0:02:10]} 14. e3 {[%clk 0:02:18]}  Nc6 {[%clk 0:01:56]} 15. Be2 {[%clk 0:02:14]}  Bd7 {[%clk 0:01:54]} 16. Rh5 {[%clk 0:02:12]}  Be8 {[%clk 0:01:51]} 17. Rh2 {[%clk 0:02:01]}  Bg6 {[%clk 0:01:44]} 18. f4 {[%clk 0:01:30]}  gxf4 {[%clk 0:01:44]} 19. exf4 {[%clk 0:01:27]}  Nxd4 {[%clk 0:01:37]} 20. Qd3 {[%clk 0:00:52]}  Nxe2 {[%clk 0:01:34]} 21. Qxe2 {[%clk 0:00:52]}  Kf7 {[%clk 0:01:07]} 22. Rah1 {[%clk 0:00:51]}  Rh8 {[%clk 0:01:06]} 23. Bf2 {[%clk 0:00:45]}  c5 {[%clk 0:00:59]} 24. Qf3 {[%clk 0:00:39]}  Rxh2 {[%clk 0:00:52]} 25. Rxh2 {[%clk 0:00:38]}  Qe7 {[%clk 0:00:34]} 26. Bh4 {[%clk 0:00:31]}  Qd7 {[%clk 0:00:33]} 27. Qg3 {[%clk 0:00:31]}  e5 {[%clk 0:00:29]} 28. Qg5 {[%clk 0:00:29]}  Qe6 {[%clk 0:00:29]} 29. g3 {[%clk 0:00:18]}  Rh8 {[%clk 0:00:15]} 30. Re2 {[%clk 0:00:17]}  e4 {[%clk 0:00:14]} 31. Rf2 {[%clk 0:00:09]}  d5 {[%clk 0:00:06]} 32. Re2 {[%clk 0:00:07]}  d4 {[%clk 0:00:06]} 33. Kc1 {[%clk 0:00:08]}  d3 {[%clk 0:00:05]} 34. Re3 {[%clk 0:00:07]}  Rxh4 {[%clk 0:00:05]} 35. gxh4 {[%clk 0:00:07]}  Qxc4 {[%clk 0:00:05]} 36. Qh6 {[%clk 0:00:07]}  Qxc3+ {[%clk 0:00:05]} 37. Kd1 {[%clk 0:00:06]}  Qc2+ {[%clk 0:00:05]} 38. Ke1 {[%clk 0:00:07]}  d2+ {[%clk 0:00:06]} 0-1


[Site "https://www.chess.com"]